fUSD/lending_fUSD_20260227
["ID","MTS","AMOUNT","RATE_DAILY","PERIOD"]
[406761972,1772165444756,-189.20405,0.000419,120]
[406761973,1772165444766,-189.20405,0.000419,120]
[406761974,1772165444776,-189.20405,0.000419,120]
[406761975,1772165444787,-151.0,0.000419,120]
[406761976,1772165444797,-151.0,0.000419,120]
[406761977,1772165444807,-151.0,0.000419,120]
[406761978,1772165444817,-151.0,0.000419,120]
[406761979,1772165444827,-175.487368,0.000419,120]
[406761980,1772165444836,-175.487368,0.000419,120]
[406761981,1772165444846,-175.487368,0.000419,120]
[406761982,1772165444857,-1040.591225,0.000419,120]
[406761983,1772165444870,-175.487368,0.000419,120]
[406761984,1772165444879,-1040.591225,0.000419,120]
[406761985,1772165444888,-1040.591225,0.000419,120]
[406761986,1772165444897,-1040.591225,0.000419,120]
[406761987,1772165444908,-151.0,0.000419,120]
[406761988,1772165444918,-151.0,0.000419,120]
[406761989,1772165444927,-151.0,0.000419,120]
[406761990,1772165444937,-157.423238,0.000419,120]
[406761991,1772165444946,-151.0,0.000419,120]
[406761992,1772165444955,-235.543547,0.000419,120]
[406761993,1772165444965,-151.0,0.000419,120]
[406761994,1772165444974,-214.334542,0.000419,120]
[406761995,1772165444983,-151.0,0.000419,120]
[406761996,1772165444993,-214.334542,0.000419,120]
[406761997,1772165445005,-214.334542,0.000419,120]
[406761998,1772165445015,-2373.646803,0.000419,120]
[406761999,1772165445025,-214.334542,0.000419,120]
[406762000,1772165445034,-2373.646803,0.000419,120]
[406762001,1772165445043,-2373.646803,0.000419,120]
[406762002,1772165445053,-2373.646803,0.000419,120]
[406762003,1772165445062,-160.119633,0.000419,120]
[406762004,1772165445071,-151.0,0.000419,120]
[406762005,1772165445080,-234.437874,0.000419,90]
[406762006,1772165445090,-234.437874,0.000419,90]
[406762007,1772165445100,-234.437874,0.000419,90]
[406762008,1772165445113,-234.437874,0.000419,90]
[406762009,1772165445123,-831.0,0.000419,60]
[406762010,1772165445132,-1348.0,0.000419,60]
[406762011,1772165445142,-170.50374807,0.00041906,30]
[406762012,1772165445151,-308.79712589,0.00041906,30]
[406762013,1772165445161,-150.0,0.00041908,30]
[406762014,1772165445170,-150.0,0.00041917,30]
[406762015,1772165445179,-600.0,0.00041918,10]
[406762016,1772165445189,-150.0,0.00041933,30]
[406762017,1772165445199,-150.0,0.00041934,30]
[406762018,1772165445210,-170.50374807,0.00041949,30]
[406762019,1772165445220,-308.79712589,0.00041949,30]
[406762020,1772165445229,-150.0,0.00041953,30]
[406762021,1772165445238,-150.0,0.00041972,30]
[406762022,1772165445248,-150.0,0.00041981,30]
[406762023,1772165445257,-170.50374807,0.00041992,30]
[406762024,1772165445266,-308.79712589,0.00041992,30]
[406762025,1772165445276,-150.0,0.00041998,30]
[406762026,1772165445285,-253.51996656,0.00041999,120]
[406762027,1772165445295,-150.0,0.00042,30]
[406762028,1772165445306,-453.72019018,0.00042,120]
[406762029,1772165445315,-175.03440067,0.00042,30]
[406762030,1772165445325,-5000.0,0.00042,14]
[406762031,1772165445334,-290.0,0.00042,120]
[406762032,1772165445344,-1118.0,0.00042,30]
[406762034,1772165445354,-9676.2454461,0.00042,120]
[406762036,1772165445366,-1000.0,0.00042,4]
[406762037,1772165445375,-504.0,0.00042,30]
[406762038,1772165445385,-642.99489897,0.00042,10]
[406762039,1772165445395,-1366.71959219,0.00042,2]
[406762041,1772165445405,-1000.0,0.00042,120]
[406762042,1772165445414,-1877.0,0.00042,120]
[406762044,1772165445622,-251.75874777,0.00042,30]
[406762045,1772165445635,-500.0,0.00042,2]
[406762046,1772165445645,-328.86276186,0.00042,120]
[406762047,1772165445655,-293.92265354,0.00042,14]
[406762048,1772165445664,-150.0,0.00042,120]
[406762049,1772165445673,-151.38,0.00042,3]
[406762050,1772165445683,-800.000001,0.00042,2]
[406762051,1772165445692,-3000.0,0.00042,120]
[406762052,1772165445701,-777.8061308,0.00042,120]
[406762053,1772165445711,-215.40587986,0.00042,120]
[406762054,1772165445720,-177.74348725,0.00042,120]
[406762055,1772165445730,-178.94920417,0.00042,120]
[406762056,1772165445740,-150.0,0.00042002,30]
[406762057,1772165445749,-150.0,0.00042004,30]
[406762058,1772165445759,-1370.14730468,0.0004201,2]
[406762059,1772165445768,-150.0,0.00042026,30]
[406762060,1772165445778,-150.0,0.00042026,30]
[406762061,1772165445787,-170.50374807,0.00042034,30]
[406762062,1772165445796,-308.79712589,0.00042034,30]
[406762063,1772165445806,-150.0,0.00042044,30]
[406762064,1772165445815,-150.0,0.00042072,30]
[406762065,1772165445824,-150.0,0.00042075,30]
[406762066,1772165445834,-150.0,0.00042075,30]
[406762067,1772165445843,-150.0,0.00042075,30]
[406762068,1772165445853,-170.50374807,0.00042077,30]
[406762069,1772165445863,-308.79712589,0.00042077,30]
[406762070,1772165445873,-150.0,0.00042081,30]
[406762071,1772165445883,-150.0,0.00042089,30]
[406762072,1772165445892,-150.0,0.00042099,30]
[406762073,1772165445902,-582.0,0.000421,3]
[406762074,1772165445911,-893.48,0.000421,14]
[406762075,1772165445921,-1167.89,0.000421,14]
[406762076,1772165445930,-7116.49,0.000421,30]
[406762077,1772165445940,-170.50374807,0.0004212,30]
[406762078,1772165445951,-308.79712589,0.0004212,30]
[406762079,1772165445961,-160.92894666,0.00042121,120]
[406762080,1772165445970,-150.0,0.00042134,30]
[406762081,1772165445980,-150.0,0.00042135,30]
[406762082,1772165445990,-150.0,0.00042137,30]
[406762083,1772165446000,-150.0,0.00042141,30]
[406762084,1772165446010,-150.0,0.00042146,30]
[406762085,1772165446019,-170.50374807,0.00042163,30]
[406762086,1772165446028,-308.79712589,0.00042163,30]
[406762087,1772165446038,-150.0,0.00042173,120]
[406762088,1772165446047,-150.0,0.00042179,30]
[406762089,1772165446056,-150.0,0.00042189,30]
[406762090,1772165446066,-150.0,0.00042189,30]
[406762091,1772165446075,-844.0,0.00042192,120]
[406762092,1772165446085,-350.0,0.00042192,10]
[406762093,1772165446095,-5658.82129949,0.000422,2]
[406762094,1772165446105,-170.50374807,0.00042206,30]
[406762095,1772165446115,-308.79712589,0.00042206,30]
[406762096,1772165446125,-216.07799896,0.0004221,7]
[406762097,1772165446134,-150.0,0.00042211,30]
[406762098,1772165446144,-150.0,0.00042217,30]
[406762099,1772165446153,-150.0,0.00042217,30]
[406762100,1772165446162,-71689.30068306,0.0004222,7]
[406762122,1772165446451,-176.68249757,0.000419,30]
[406762124,1772165446461,-265.67533438,0.000419,60]
[406762434,1772166130960,1936.14674604,7.6e-05,3]
[406762435,1772166130995,9080.73373022,7.6e-05,3]
[406762436,1772166131041,7972.13151862,7.6e-05,3]
[406762437,1772166131077,5147.84139178,7.6e-05,3]
[406762438,1772166131122,3791.50259991,7.6e-05,3]
[406762439,1772166307672,1730.85805092,7.6e-05,3]
[406762444,1772166468748,1730.85805092,7.5e-05,3]
[406762452,1772166631732,-207.74,7.468e-05,2]
[406762453,1772166631742,-2125.58099426,7.644e-05,2]
[406762454,1772166631792,-1951.35,7.644e-05,2]
[406762455,1772166631848,-767.06900574,7.644e-05,2]
[406762456,1772166631858,-151.0,7.678e-05,2]
[406762457,1772166631872,-151.0,7.678e-05,2]
[406762458,1772166631881,-151.0,7.678e-05,2]
[406762459,1772166631891,-300.0,7.679e-05,2]
[406762460,1772166631903,-300.0,7.679e-05,2]
[406762462,1772166631913,-1200.0,7.679e-05,2]
[406762463,1772166631922,-300.0,7.679e-05,2]
[406762464,1772166631932,-150.0,7.679e-05,2]
[406762465,1772166631943,-500.0,7.68e-05,2]
[406762466,1772166631952,-500.0,7.68e-05,2]
[406762467,1772166631962,-500.0,7.68e-05,2]
[406762469,1772166631971,-500.0,7.68e-05,2]
[406762472,1772166631980,-500.0,7.68e-05,2]
[406762475,1772166631990,-500.0,7.68e-05,2]
[406762477,1772166632000,-500.0,7.68e-05,2]
[406762479,1772166632010,-500.0,7.68e-05,2]
[406762481,1772166632020,-551.9232438,7.68e-05,2]
[406762483,1772166632029,-500.0,7.68e-05,2]
[406762485,1772166632038,-500.0,7.68e-05,2]
[406762486,1772166632050,-500.0,7.68e-05,2]
[406762487,1772166632060,-250.0,7.68e-05,2]
[406762488,1772166632069,-203092.85129214,7.681e-05,2]
[406762491,1772166637795,-1796907.14870786,7.681e-05,2]
[406762492,1772166637805,-2797.59560764,7.696e-05,2]
[406762493,1772166637815,-451.35,7.771e-05,2]
[406762494,1772166637824,-148073.0,7.781e-05,2]
[406762495,1772166637833,-1462.1,7.795e-05,2]
[406762496,1772166637843,-1462.1,8.069e-05,2]
[406762497,1772166637852,-11427.390506,8.178e-05,2]
[406762498,1772166637864,-9999.99,8.178e-05,2]
[406762499,1772166637873,-299.99,8.178e-05,2]
[406762500,1772166637882,-658.73,8.178e-05,2]
[406762501,1772166637891,-150.99,8.178e-05,2]
[406762502,1772166637901,-9999.99,8.178e-05,2]
[406762503,1772166637910,-281.99998894,8.215e-05,2]
[406762504,1772166637920,-1480.533447,8.219e-05,2]
[406762505,1772166637932,-159.866063,8.219e-05,2]
[406762506,1772166637942,-373.020816,8.219e-05,2]
[406762507,1772166637952,-150.0,8.219e-05,2]
[406762508,1772166637962,-846.019113,8.219e-05,2]
[406762509,1772166637971,-202.863887,8.219e-05,2]
[406762510,1772166637980,-255.727775,8.219e-05,2]
[406762511,1772166637989,-308.591663,8.219e-05,2]
[406762512,1772166637999,-361.45555,8.219e-05,2]
[406762513,1772166638008,-414.319438,8.219e-05,2]
[406762514,1772166638018,-467.183326,8.219e-05,2]
[406762515,1772166638027,-520.047214,8.219e-05,2]
[406762516,1772166638036,-572.911101,8.219e-05,2]
[406762517,1772166638046,-625.774989,8.219e-05,2]
[406762518,1772166638055,-150.0,8.249e-05,2]
[406762519,1772166638065,-267.511803,8.249e-05,2]
[406762520,1772166638075,-385.023607,8.249e-05,2]
[406762521,1772166638085,-502.53541,8.249e-05,2]
[406762522,1772166638094,-620.047214,8.249e-05,2]
[406762523,1772166638104,-737.559017,8.249e-05,2]
[406762524,1772166638113,-855.070821,8.249e-05,2]
[406762525,1772166638123,-972.582624,8.249e-05,2]
[406762526,1772166638132,-1090.094428,8.249e-05,2]
[406762527,1772166638142,-1207.606231,8.249e-05,2]
[406762528,1772166638152,-500.0,8.249e-05,2]
[406762529,1772166638161,-1462.1,8.343e-05,2]
[406762530,1772166638171,-195.0,8.408e-05,2]
[406762531,1772166638180,-195.0,8.408e-05,2]
[406762532,1772166638190,-195.0,8.408e-05,2]
[406762533,1772166638200,-195.0,8.408e-05,2]
[406762534,1772166638209,-195.0,8.408e-05,2]
[406762535,1772166638220,-939.0,8.435e-05,2]
[406762536,1772166638229,-420.0,8.447e-05,2]
[406762537,1772166638240,-301.0,8.447e-05,2]
[406762538,1772166638249,-1680.0,8.447e-05,2]
[406762539,1772166638258,-300.0,8.447e-05,2]
[406762540,1772166638268,-255.0,8.447e-05,2]
[406762541,1772166638278,-250.0,8.448e-05,2]
[406762542,1772166638288,-4491.26170584,8.449e-05,2]
[406762543,1772166638297,-250.0,8.465e-05,2]
[406762544,1772166638307,-1015.0,8.487e-05,2]
[406762545,1772166638316,-213.79640327,8.487e-05,2]
[406762546,1772166638325,-500.0,8.523e-05,2]
[406762547,1772166638335,-492.0,8.614e-05,2]
[406762548,1772166638344,-1462.1,8.617e-05,2]
[406762549,1772166638354,-160.0,8.631e-05,2]
[406762550,1772166638364,-402.0,8.727e-05,2]
[406762551,1772166638373,-609.0,8.745e-05,2]
[406762552,1772166638383,-160.7654888,8.797e-05,2]
[406762553,1772166638391,-32885.2992,8.8e-05,2]
[406762554,1772166638401,-1462.1,8.891e-05,2]
[406762555,1772166638411,-1462.1,9.165e-05,2]
[406762556,1772166638419,-587.0,9.291e-05,2]
[406762557,1772166638429,-2351.0,9.291e-05,2]
[406762558,1772166638438,-433.0,9.291e-05,2]
[406762559,1772166638447,-363.0,9.376e-05,2]
[406762561,1772166638456,-324.0,9.394e-05,2]
[406762563,1772166638465,-1462.1,9.439e-05,2]
[406762564,1772166638476,-185.0,9.442e-05,2]
[406762566,1772166638485,-1586.285837,9.651e-05,2]
[406762568,1772166638495,-7272.890527,9.651e-05,2]
[406762570,1772166638505,-558.59,9.703e-05,2]
[406762572,1772166638514,-1462.1,9.713e-05,2]
[406762574,1772166638523,-299.748869,9.775e-05,2]
[406762576,1772166638533,-250.0,9.869e-05,2]
[406762578,1772166638542,-1462.1,9.987e-05,2]
[406762580,1772166638551,-151.0,0.0001,2]
[406762582,1772166638560,-151.0,0.0001,2]
[406762584,1772166638570,-151.0,0.0001,2]
[406762586,1772166638579,-151.0,0.0001,2]
[406762588,1772166638588,-151.0,0.0001,2]
[406762590,1772166638598,-151.0,0.0001,2]
[406762592,1772166638607,-151.0,0.0001,2]
[406762594,1772166638617,-151.0,0.0001,2]
[406762596,1772166638626,-151.0,0.0001,2]
[406762598,1772166638635,-151.0,0.0001,2]
[406762600,1772166638644,-151.0,0.0001,2]
[406762602,1772166638654,-151.0,0.0001,2]
[406762604,1772166638663,-151.0,0.0001,2]
[406762606,1772166638672,-151.0,0.0001,2]
[406762608,1772166638682,-151.0,0.0001,2]
[406762610,1772166638691,-151.0,0.0001,2]
[406762612,1772166638700,-151.0,0.0001,2]
[406762614,1772166638710,-151.0,0.0001,2]
[406762616,1772166638720,-151.0,0.0001,2]
[406762618,1772166638729,-151.0,0.0001,2]
[406762620,1772166638739,-216.07799896,0.0001,2]
[406762622,1772166638748,-823.0,0.00010221,2]
[406762624,1772166638757,-1200.0,0.00010221,2]
[406762626,1772166638766,-555.0,0.00010221,2]
[406762628,1772166638775,-1462.1,0.00010261,2]
[406762630,1772166638784,-500.0,0.000103,2]
[406762632,1772166638793,-955.8640179,0.000103,2]
[406762634,1772166638803,-500.0,0.000103,2]
[406762636,1772166638813,-500.0,0.000103,2]
[406762638,1772166638823,-500.0,0.000103,2]
[406762653,1772166639040,-500.0,0.000103,2]
[406762654,1772166639052,-888.46058708,0.000103,2]
[406762655,1772166639061,-500.0,0.000103,2]
[406762656,1772166639071,-500.0,0.000103,2]
[406762657,1772166639081,-500.0,0.000103,2]
[406762658,1772166639090,-500.0,0.000103,2]
[406762659,1772166639099,-500.0,0.000103,2]
[406762660,1772166639109,-543.75451416,0.000103,2]
[406762661,1772166639118,-500.0,0.000103,2]
[406762662,1772166639128,-500.0,0.000103,2]
[406762663,1772166639138,-700.0,0.000103,2]
[406762664,1772166639147,-500.0,0.000103,2]
[406762665,1772166639157,-700.0,0.000103,2]
[406762666,1772166639166,-500.0,0.000103,2]
[406762667,1772166639176,-700.0,0.000103,2]
[406762668,1772166639185,-700.0,0.000103,2]
[406762669,1772166639194,-500.0,0.000103,2]
[406762670,1772166639204,-500.0,0.000103,2]
[406762671,1772166639213,-700.0,0.000103,2]
[406762672,1772166639224,-869.50668288,0.000103,2]
[406762673,1772166639234,-500.0,0.000103,2]
[406762674,1772166639243,-700.0,0.000103,2]
[406762675,1772166639253,-500.0,0.000103,2]
[406762676,1772166639263,-563.07260655,0.000103,2]
[406762677,1772166639272,-700.0,0.000103,2]
[406762678,1772166639282,-500.0,0.000103,2]
[406762679,1772166639291,-869.88788903,0.000103,2]
[406762680,1772166639301,-700.0,0.000103,2]
[406762681,1772166639310,-500.0,0.000103,2]
[406762682,1772166639319,-700.0,0.000103,2]
[406762683,1772166639330,-503.2038976,0.000103,2]
[406762684,1772166639339,-500.0,0.000103,2]
[406762685,1772166639349,-700.0,0.000103,2]
[406762686,1772166639358,-500.0,0.000103,2]
[406762687,1772166639367,-500.0,0.000103,2]
[406762688,1772166639376,-700.0,0.000103,2]
[406762689,1772166639386,-500.0,0.000103,2]
[406762690,1772166639395,-500.0,0.000103,2]
[406762691,1772166639405,-700.0,0.000103,2]
[406762692,1772166639415,-500.0,0.000103,2]
[406762693,1772166639426,-608.03658136,0.000103,2]
[406762694,1772166639435,-779.54095506,0.000103,2]
[406762695,1772166639444,-500.0,0.000103,2]
[406762696,1772166639453,-500.0,0.000103,2]
[406762697,1772166639464,-526.97533927,0.000103,2]
[406762698,1772166639474,-500.0,0.000103,2]
[406762699,1772166639484,-526.98589059,0.000103,2]
[406762700,1772166639493,-500.0,0.000103,2]
[406762701,1772166639502,-500.0,0.000103,2]
[406762702,1772166639512,-999.60975313,0.000103,2]
[406762703,1772166639521,-160.66,0.00010508,2]
[406762704,1772166639530,-1462.1,0.00010535,2]
[406762705,1772166639540,-381.0,0.00010728,2]
[406762706,1772166639551,-196.0,0.0001075,2]
[406762707,1772166639565,-324.0,0.00010771,2]
[406762708,1772166639575,-303.0,0.00010793,2]
[406762709,1772166639585,-1462.1449579,0.00010808,2]
[406762710,1772166639595,-208.0,0.00010814,2]
[406762711,1772166639605,-501.84472279,0.00010829,2]
[406762712,1772166639614,-504.03602982,0.00010829,2]
[406762713,1772166639624,-500.0,0.00010829,2]
[406762714,1772166639635,-501.39565061,0.00010829,2]
[406762715,1772166639645,-163.76224101,0.00010829,2]
[406762716,1772166639654,-500.0,0.00010829,2]
[406762717,1772166639664,-500.0,0.00010829,2]
[406762718,1772166639673,-500.0,0.00010829,2]
[406762719,1772166639683,-500.0,0.00010829,2]
[406762720,1772166639693,-500.44493278,0.00010829,2]
[406762721,1772166639703,-500.0,0.00010829,2]
[406762722,1772166639713,-590.44665858,0.00010829,2]
[406762723,1772166639725,-500.0,0.00010829,2]
[406762724,1772166639734,-500.0,0.00010829,2]
[406762725,1772166639744,-1674.63871618,0.000109,2]
[406762726,1772166639753,-166.66,0.00010959,2]
[406762727,1772166639763,-166.66,0.00011068,2]
[406762728,1772166639772,-3322.97570325,0.00011099,2]
[406762729,1772166639781,-166.66,0.00011178,2]
[406762730,1772166639791,-229.0,0.00011243,2]
[406762731,1772166639800,-166.66,0.00011288,2]
[406762732,1772166639810,-1000.0,0.00011377,2]
[406762733,1772166639820,-1000.0,0.00011377,2]
[406762734,1772166639831,-1000.0,0.00011377,2]
[406762735,1772166639841,-1000.0,0.00011377,2]
[406762736,1772166639850,-1000.0,0.00011377,2]
[406762737,1772166639860,-502.09548261,0.00011377,2]
[406762738,1772166639869,-500.0,0.00011377,2]
[406762739,1772166639883,-166.66,0.00011397,2]
[406762740,1772166639892,-166.66,0.00011507,2]
[406762741,1772166639902,-3322.97570318,0.00011517,2]
[406762743,1772166639913,-151.0,0.00011921,2]
[406762744,1772166639923,-501.85175183,0.00011924,2]
[406762745,1772166639932,-1030.89081199,0.00011924,2]
[406762746,1772166639941,-500.0,0.00011924,2]
[406762747,1772166639953,-1903.543004,0.00012063,2]
[406762748,1772166639963,-8727.468632,0.00012063,2]
[406762749,1772166639974,-359.698643,0.00012219,2]
[406762750,1772166639983,-1131.98391739,0.00012472,2]
[406762751,1772166639993,-500.0,0.00012888,2]
[406762752,1772166640002,-561.73389426,0.00012888,2]
[406762753,1772166640012,-227.198441,0.00012888,2]
[406762754,1772166640021,-217.23,0.00012889,2]
[406762755,1772166640031,-500.0,0.0001289,2]
[406762756,1772166640041,-500.0,0.0001289,2]
[406762757,1772166640050,-500.0,0.0001289,2]
[406762758,1772166640060,-500.0,0.0001289,2]
[406762759,1772166640070,-501.78946227,0.0001289,2]
[406762760,1772166640080,-500.0,0.0001289,2]
[406762761,1772166640089,-500.0,0.0001289,2]
[406762762,1772166640099,-500.0,0.0001289,2]
[406762763,1772166640109,-500.0,0.0001289,2]
[406762764,1772166640118,-500.0,0.0001289,2]
[406762765,1772166640128,-500.0,0.0001289,2]
[406762766,1772166640139,-500.0,0.0001289,2]
[406762767,1772166640148,-500.0,0.0001289,2]
[406762768,1772166640157,-500.0,0.0001289,2]
[406762769,1772166640168,-500.0,0.0001289,2]
[406762770,1772166640178,-500.0,0.0001289,2]
[406762771,1772166640187,-500.0,0.0001289,2]
[406762772,1772166640197,-500.0,0.0001289,2]
[406762773,1772166640207,-500.0,0.0001289,2]
[406762774,1772166640216,-500.0,0.0001289,2]
[406762775,1772166640226,-500.0,0.0001289,2]
[406762776,1772166640236,-500.0,0.0001289,2]
[406762777,1772166640246,-500.0,0.0001289,2]
[406762778,1772166640256,-700.0,0.0001289,2]
[406762779,1772166640265,-700.0,0.0001289,2]
[406762780,1772166640274,-700.0,0.0001289,2]
[406762781,1772166640284,-700.0,0.0001289,2]
[406762782,1772166640293,-700.0,0.0001289,2]
[406762783,1772166640302,-700.0,0.0001289,2]
[406762784,1772166640312,-700.0,0.0001289,2]
[406762785,1772166640322,-700.0,0.0001289,2]
[406762786,1772166640331,-700.0,0.0001289,2]
[406762787,1772166640340,-700.0,0.0001289,2]
[406762788,1772166640349,-700.0,0.0001289,2]
[406762789,1772166640359,-700.0,0.0001289,2]
[406762790,1772166640368,-700.0,0.0001289,2]
[406762791,1772166640378,-500.0,0.0001289,2]
[406762792,1772166640387,-500.0,0.0001289,2]
[406762793,1772166640397,-500.0,0.0001289,2]
[406762794,1772166640406,-500.0,0.0001289,2]
[406762795,1772166640415,-500.0,0.0001289,2]
[406762796,1772166640424,-500.0,0.0001289,2]
[406762797,1772166640434,-500.0,0.0001289,2]
[406762798,1772166640444,-500.0,0.0001289,2]
[406762799,1772166640453,-500.0,0.0001289,2]
[406762800,1772166640464,-500.0,0.0001289,2]
[406762801,1772166640474,-500.0,0.0001289,2]
[406762802,1772166640483,-500.0,0.0001289,2]
[406762803,1772166640493,-500.0,0.0001289,2]
[406762804,1772166640502,-500.0,0.0001289,2]
[406762805,1772166640511,-500.0,0.0001289,2]
[406762806,1772166640520,-500.0,0.0001289,2]
[406762807,1772166640529,-500.0,0.0001289,2]
[406762808,1772166640539,-500.0,0.0001289,2]
[406762809,1772166640549,-500.0,0.0001289,2]
[406762810,1772166640561,-500.0,0.0001289,2]
[406762811,1772166640571,-500.0,0.0001289,2]
[406762812,1772166640580,-500.0,0.0001289,2]
[406762813,1772166640590,-500.0,0.0001289,2]
[406762814,1772166640599,-500.0,0.0001289,2]
[406762815,1772166640608,-500.0,0.0001289,2]
[406762816,1772166640618,-500.0,0.0001289,2]
[406762817,1772166640627,-500.0,0.0001289,2]
[406762818,1772166640637,-187.7,0.00012899,2]
[406762819,1772166640646,-1674.63871613,0.00012925,2]
[406762820,1772166640655,-150.0,0.00012983,2]
[406762821,1772166640664,-500.0,0.00013698,2]
[406762822,1772166640675,-500.0,0.00013698,2]
[406762823,1772166640685,-534.58,0.00013698,2]
[406762824,1772166640694,-500.0,0.00013698,2]
[406762825,1772166640704,-500.0,0.00013698,2]
[406762826,1772166640713,-500.0,0.00013698,2]
[406762827,1772166640723,-500.0,0.00013698,2]
[406762828,1772166640733,-409.08,0.00013698,2]
[406762829,1772166640744,-500.0,0.00013698,2]
[406762830,1772166640753,-500.0,0.00013698,2]
[406762831,1772166640762,-500.0,0.00013698,2]
[406762832,1772166640771,-517.91963663,0.00013698,2]
[406762833,1772166640781,-500.0,0.00013698,2]
[406762834,1772166640791,-500.0,0.00013698,2]
[406762835,1772166640800,-500.0,0.00013698,2]
[406762836,1772166640810,-500.0,0.00013698,2]
[406762837,1772166640820,-500.0,0.00013698,2]
[406762838,1772166640829,-500.0,0.00013698,2]
[406762839,1772166640839,-500.0,0.00013698,2]
[406762840,1772166640849,-500.0,0.00013698,2]
[406762841,1772166640858,-500.0,0.00013698,2]
[406762842,1772166640868,-500.0,0.00013698,2]
[406762843,1772166640879,-500.0,0.00013698,2]
[406762844,1772166640889,-500.0,0.00013698,2]
[406762845,1772166640898,-500.0,0.00013698,2]
[406762846,1772166640915,-500.0,0.00013698,2]
[406762847,1772166640928,-500.0,0.00013698,2]
[406762848,1772166640939,-583.84924792,0.00013698,2]
[406762849,1772166640949,-500.0,0.00013698,2]
[406762850,1772166640961,-500.0,0.00013698,2]
[406762851,1772166640978,-500.0,0.00013698,2]
[406762852,1772166640988,-500.0,0.00013698,2]
[406762853,1772166640999,-500.0,0.00013698,2]
[406762854,1772166641009,-500.0,0.00013698,2]
[406762855,1772166641020,-538.6368582,0.00013698,2]
[406762856,1772166641030,-500.0,0.00013698,2]
[406762857,1772166641041,-500.0,0.00013698,2]
[406762858,1772166641052,-500.0,0.00013698,2]
[406762859,1772166641063,-500.0,0.00013698,2]
[406762860,1772166641074,-500.0,0.00013698,2]
[406762861,1772166641085,-500.0,0.00013698,2]
[406762862,1772166641096,-500.0,0.00013698,2]
[406762863,1772166641106,-500.0,0.00013698,2]
[406762864,1772166641116,-504.0,0.0001489,2]
[406762865,1772166641126,-504.0,0.0001489,2]
[406762866,1772166641137,-3322.97570318,0.00015339,2]
[406762867,1772166641149,-4210.07,0.00015471,2]
[406762868,1772166641159,-1586.285837,0.00016084,7]
[406762869,1772166641168,-7272.890527,0.00016084,7]
[406762870,1772166641178,-9999.99,0.00016116,2]
[406762871,1772166641188,-299.748869,0.00016292,7]
[406762872,1772166641198,-160.0,0.00016314,2]
[406762873,1772166641208,-174.00015664,0.00016314,2]
[406762874,1772166641217,-816.0,0.000164,2]
[406762875,1772166641233,-255.24410738,0.00017699,2]
[406762876,1772166641242,-150.0,0.00017699,2]
[406762877,1772166641253,-150.0,0.00017699,2]
[406762878,1772166641263,-500.0,0.00017699,2]
[406762879,1772166641272,-150.0,0.00017699,2]
[406762880,1772166641282,-150.0,0.00017699,2]
[406762881,1772166641295,-150.0,0.00017754,2]
[406762882,1772166641305,-150.0,0.00017754,2]
[406762883,1772166641314,-500.0,0.00017754,2]
[406762884,1772166641324,-500.0,0.00017808,2]